Cogmind - Beta 12 @@@ ROGUE MODE // 2023.11.27 @ 22:45:08 Player: drchaos820 Result: Destroyed by D-53 Grenadier with Mini Grenade Launcher Performance ------------- Evolutions (1) 500 Regions Visited (3) 600 Robots Destroyed (20) 100 Value Destroyed (375) 375 Prototype IDs (0) 0 Alien Tech Used (0) 0 Bonus (0) 0 TOTAL SCORE: 1575 Bonus ------- None Cogmind --------- Core Integrity 0/400 Matter 238/300 Energy 80/100 System Corruption 0% Temperature Cool (0) Movement Rolling (140) Ox4 Location -9/Mines Parts ------- > --- POWER (1) -------- (None) > --- PROPULSION (2) --- Wheel > --- UTILITY (4) ------ High-capacity Storage Unit Visual Processing Unit Seismic Detector > --- WEAPON (2) ------- Welding Torch > --- INVENTORY (20) --- Light Ion Engine Improved Ion Engine Wheel Wheel Small Storage Unit Signal Interpreter Terrain Scan Processor Terrain Scan Processor Heavy Armor Plating Heavy Armor Plating Spread Laser Light EM Pulse Cannon Light Assault Rifle Light Assault Rifle Grenade Launcher Peak State ------------ > --- POWER ------------ Improved Ion Engine > --- PROPULSION ------- Wheel Compact Wheel > --- UTILITY ---------- High-capacity Storage Unit Visual Processing Unit Improved Terrain Scanner Seismic Detector > --- WEAPON ----------- EM Pulse Gun EM Pulse Gun > --- INVENTORY -------- Light Ion Engine Wheel Small Storage Unit Heavy Armor Plating Heavy Armor Plating Spread Laser Light EM Pulse Cannon Shotgun Grenade Launcher Grenade Launcher [Rating: 15] Favorites ----------- Power Light Ion Engine Engine Light Ion Engine Propulsion Wheel Wheel Wheel Utility Seismic Detector Device Seismic Detector Storage High-capacity Storage Unit Processor Visual Processing Unit Weapon EM Pulse Gun Energy Gun EM Pulse Gun Energy Cannon Light EM Pulse Cannon Ballistic Gun Shotgun Launcher Grenade Launcher Build | -11 -10 -9 -9 ------- Run | Jun Mat Mat Min Slots Evolved 2 | . . 2 . Power . | . . . . Propulsion . | . . . . Utility 2 | . . 2 . Weapon . | . . . . Parts Attached 26 | 7 . 16 3 Power 5 | 1 . 4 . Engine 5 | 1 . 4 . Core . | . . . . Reactor . | . . . . Propulsion 5 | 2 . 3 . Treads . | . . . . Leg . | . . . . Wheel 5 | 2 . 3 . Hover . | . . . . Flight . | . . . . Utility 7 | 2 . 5 . Device 3 | 1 . 2 . Storage 2 | 1 . 1 . Processor 2 | . . 2 . Hackware . | . . . . Protection . | . . . . Artifact . | . . . . Weapon 9 | 2 . 4 3 Energy Gun 4 | 2 . 1 1 Energy Cannon 1 | . . . 1 Ballistic Gun 2 | . . 2 . Ballistic Cannon . | . . . . Launcher 1 | . . 1 . Special Weapon 1 | . . . 1 Impact Weapon . | . . . . Slashing Weapon . | . . . . Piercing Weapon . | . . . . Special Melee Weapon . | . . . . Unidentified Prototypes . | . . . . Parts Lost 14 | . . 9 5 Power 3 | . . 2 1 Propulsion 3 | . . 2 1 Utility 2 | . . 1 1 Weapon 6 | . . 4 2 Highest Loss Streak 6 | . . 6 5 To Critical Strikes . | . . . . Average Slot Usage (%) 94 | . 100 94 73 Engine 11 | . 14 10 7 Wheel 21 | . 28 20 11 Device 20 | . 14 22 18 Storage 11 | . 14 11 11 Processor 9 | . . 11 11 Energy Gun 16 | . 28 14 7 Ballistic Gun 3 | . . 4 7 Naked Turns . | . . . . Heaviest Build 53 | 13 13 53 51 Greatest Support 26 | 26 26 26 10 Greatest Overweight (x) 5 | . . 5 5 Average Overweight (x) 1 | . . 1 4 Largest Inventory Capacity 20 | 8 8 20 20 Average Capacity 15 | 7 8 18 20 Most Carried 18 | 2 4 17 18 Average Carried 8 | . 3 11 17 Final Capacity 20 | 8 8 20 20 Final Carried 17 | 2 4 17 17 Class Distribution -------------------- 84% | Mutant 15% | Scavenger-Mutant Dominant Class ---------------- Mutant | -10/Materials Mutant | -9/Materials Mutant | -9/Mines Resources | -11 -10 -9 -9 ----------- Run | Jun Mat Mat Min Matter Collected 466 | 270 . 196 . Remotely . | . . . . Salvage Created 523 | 138 47 303 35 Parts 53 | 9 4 36 4 Haulers Intercepted . | . . . . Recyclers Shooed . | . . . . Parts Field Recycled . | . . . . Retrieved Matter . | . . . . Parts Self-Destructed . | . . . . Prevented . | . . . . Kills | -11 -10 -9 -9 ------- Run | Jun Mat Mat Min Combat Hostiles Destroyed 9 | . . 7 2 Guns 6 | . . 4 2 AOE 3 | . . 3 . Classes Destroyed 7 | 2 1 4 . Worker 1 | . . 1 . Builder 3 | . . 3 . Tunneler 2 | 2 . . . Recycler 1 | 1 . . . Watcher 4 | . 1 3 . Swarmer 6 | . . 4 2 Sentry 3 | . . 3 . Best Kill Streak 8 | 3 1 8 2 Combat Bots Only 4 | . . 4 2 Max Kills in Single Turn 4 | 1 1 4 1 Gunslinging . | . . . . Exploded 3 | . . 3 . Melee . | . . . . Uniques/NPCs Destroyed . | . . . . Combat | -11 -10 -9 -9 -------- Run | Jun Mat Mat Min Damage Taken 1154 | 34 . 634 486 Core 417 | 17 . 136 264 Absorbed by Shields . | . . . . Core Remaining (%) 93 | 93 93 . . Volleys Fired 46 | 6 7 29 4 Largest 2 | 2 2 2 2 Hottest 80 | 80 80 80 79 Shots Fired 73 | 12 14 40 7 Gun 68 | 12 14 36 6 Cannon 1 | . . . 1 Launcher 4 | . . 4 . Special . | . . . . Kinetic 17 | . . 13 4 Thermal . | . . . . Explosive 4 | . . 4 . Electromagnetic 52 | 12 14 23 3 Robot Hit Streak 12 | 4 4 12 2 Robot Miss Streak 3 | 3 1 2 3 Penetration Max . | . . . . Secondary Targets 2 | . . 2 . Max Gunslinging Chain 1 | . . 1 . Shots Hit Robots 33 | 7 3 19 4 Core Hits 29 | 3 1 22 3 Critical Kills . | . . . . Critical Parts Destroyed 1 | . . . 1 Critical Strikes 1 | . . . 1 Destroy 1 | . . . 1 Melee Attacks . | . . . . Impact . | . . . . Slashing . | . . . . Piercing . | . . . . Sneak Attacks . | . . . . Combat Hostiles . | . . . . Follow-up Attacks . | . . . . Damage Inflicted 973 | 172 64 672 65 Guns 532 | 98 64 305 65 Cannons . | . . . . Explosions 441 | 74 . 367 . Melee . | . . . . Ramming . | . . . . Kinetic 199 | . . 158 41 Thermal 232 | 74 . 158 . Explosive 173 | . . 173 . Electromagnetic 369 | 98 64 183 24 Impact . | . . . . Slashing . | . . . . Piercing . | . . . . Highest Corruption . | . . . . Average Corruption . | . . . . Corruption Purged . | . . . . Corruption Blocked . | . . . . Overload Shots . | . . . . Overflow Damage 53 | 3 . 50 . Projectiles . | . . . . Explosions 53 | 3 . 50 . Melee . | . . . . Knockbacks . | . . . . Impact . | . . . . Kinetic . | . . . . Secondary . | . . . . Self-Inflicted Damage 298 | 35 . 263 . Shots 10 | 1 . 9 . Rammed . | . . . . Targets Rammed . | . . . . Kicked . | . . . . Crushed . | . . . . Highest Temperature 72 | 72 54 58 . Average Temperature 23 | 31 22 20 . Received Heat Transfer 117 | . . 117 . Siege Activations . | . . . . Robots Corrupted . | . . . . Combat Hostiles . | . . . . Parts Fried 2 | . 1 1 . Impact Corruptions . | . . . . Robots Melted . | . . . . Combat Hostiles . | . . . . Parts Melted 1 | . . 1 . Heat Transferred 300 | 100 . 200 . Parts Sabotaged . | . . . . Parts Stolen . | . . . . Parts Stripped . | . . . . Power Chain Reactions 6 | 2 . 4 . Missiles Intercepted . | . . . . Alert | -11 -10 -9 -9 ------- Run | Jun Mat Mat Min Peak Influence 295 | 15 61 295 75 Initial 45 | . 9 25 45 Average 76 | 4 30 101 57 Maximum Alert Level 1 | . . 1 . Low Security (%) 88 | 100 100 83 100 Level 1 11 | . . 16 . Level 2 . | . . . . Level 3 . | . . . . Level 4 . | . . . . Level 5 . | . . . . High Security . | . . . . Max Security . | . . . . Squads Dispatched . | . . . . Investigation . | . . . . Extermination . | . . . . Reinforcement . | . . . . Assault . | . . . . Garrison . | . . . . Intercept . | . . . . Searches Triggered . | . . . . Construction Impeded . | . . . . Haulers Reinforced . | . . . . Active Scanning Responses . | . . . . Cargo Convoy Interrupts . | . . . . Stealth | -11 -10 -9 -9 --------- Run | Jun Mat Mat Min Distress Signals . | . . . . Communications Jammed . | . . . . Distress Signals . | . . . . Times Spotted 23 | . 1 10 12 Peak Tracking Total 7 | . 1 6 7 Tactical Retreats . | . . . . Traps | -11 -10 -9 -9 ------- Run | Jun Mat Mat Min Traps Triggered . | . . . . Indirectly . | . . . . Trap Hack Attempts . | . . . . Triggered . | . . . . Disarmed . | . . . . Reprogrammed . | . . . . Reused . | . . . . Traps Extracted . | . . . . Installed . | . . . . Triggered . | . . . . Machines | -11 -10 -9 -9 ---------- Run | Jun Mat Mat Min Machines Disabled 8 | . 2 6 . Max in Single Turn 3 | . 1 3 . Machines Repaired . | . . . . Machines Sabotaged . | . . . . Overloaded Fab Kills . | . . . . Hacking | -11 -10 -9 -9 --------- Run | Jun Mat Mat Min Machines Accessed 1 | . 1 . . Terminals 1 | . 1 . . Fabricators . | . . . . Repair Stations . | . . . . Recycling Units . | . . . . Scanalyzers . | . . . . Garrison Access . | . . . . Total Hacks 2 | . 2 . . Successful . | . . . . Failed 2 | . 2 . . Catastrophic 1 | . 1 . . Database Lockouts . | . . . . Manual 2 | . 2 . . Terminals 2 | . 2 . . Fabricators . | . . . . Repair Stations . | . . . . Recycling Units . | . . . . Scanalyzers . | . . . . Garrison Access . | . . . . Terminal Hacks . | . . . . Fabricator Hacks . | . . . . Repair Station Hacks . | . . . . Recycling Unit Hacks . | . . . . Scanalyzer . | . . . . Garrison Access Hacks . | . . . . Unauthorized Hacks . | . . . . Terminals . | . . . . Fabricators . | . . . . Repair Stations . | . . . . Recycling Units . | . . . . Scanalyzers . | . . . . Garrison Access . | . . . . Data Cores Recovered . | . . . . Used . | . . . . Hacking Detections 1 | . 1 . . Full Trace Events . | . . . . Feedback Events . | . . . . Feedback Blocked . | . . . . Robot Schematics Acquired . | . . . . Robots Built . | . . . . Authchips . | . . . . Time . | . . . . Total Robot Build Rating . | . . . . Part Schematics Acquired . | . . . . Parts Built . | . . . . Authchips . | . . . . Time . | . . . . Total Part Build Rating . | . . . . Parts Repaired . | . . . . Time . | . . . . Parts Recycled . | . . . . Recycled Matter . | . . . . Retrieved Matter . | . . . . Retrieved Components . | . . . . Parts Scanalyzed . | . . . . Part Schematics Acquired . | . . . . Parts Damaged . | . . . . Bothacking | -11 -10 -9 -9 ------------ Run | Jun Mat Mat Min Used RIF Installer . | . . . . Robots Hacked . | . . . . Non-combat . | . . . . Combat . | . . . . Robot Hacks Applied . | . . . . Relay Couplers Released . | . . . . Fabnet Peak Effective % . | . . . . Robots Rewired . | . . . . Allies Hacked . | . . . . Hacks Repelled . | . . . . Allies | -11 -10 -9 -9 -------- Run | Jun Mat Mat Min Total Allies . | . . . . Largest Group . | . . . . Highest-Rated Group . | . . . . Highest-Rated Ally . | . . . . Total Orders . | . . . . Ally Attacks . | . . . . Total Damage . | . . . . Kills . | . . . . Allies Corrupted . | . . . . Allies Melted . | . . . . Intel | -11 -10 -9 -9 ------- Run | Jun Mat Mat Min Robot Analysis Total . | . . . . Derelict Logs Recovered . | . . . . Drone Launches . | . . . . Drone Recoveries . | . . . . Exploration | -11 -10 -9 -9 ------------- Run | Jun Mat Mat Min Turns Passed 701 | 88 104 479 30 Spaces Moved 480 | 65 83 322 10 Core 1 | 1 . . . Treads . | . . . . Legs . | . . . . Wheels 479 | 64 83 322 10 Hover . | . . . . Flight . | . . . . Fastest Speed 50 | 50 90 90 140 Average Speed 103 | 89 90 108 144 Slowest Speed 155 | 100 90 155 155 Overloaded Moves . | . . . . Propulsion Burnouts . | . . . . Robots Hopped . | . . . . Cave-ins Triggered . | . . . . Exploration Rate (%) 15 | 5 21 28 7 Regions Visited 3 Branch Regions 1 Pre-discovered Areas . | . . . . Known Exits Taken . | . . . . Unknown Exits Taken 3 | 1 1 1 . Scrap Searched . | . . . . Spaces Dug 6 | . . 6 . Terrain Destroyed 36 | 8 . 28 . Melee . | . . . . Projectile . | . . . . AOE 36 | 8 . 28 . Terrain Rammed . | . . . . Walls Destroyed . | . . . . Machines Disabled . | . . . . Actions | -11 -10 -9 -9 --------- Run | Jun Mat Mat Min Total 601 | 79 98 406 18 Wait 31 | . 7 24 . Move 477 | 64 82 321 10 Hop . | . . . . Pick Up 21 | 2 2 16 1 Fast Attach 10 | 7 . 3 . Attach 9 | . . 8 1 Detach . | . . . . Swap 7 | . . 5 2 Drop . | . . . . Fire 46 | 6 7 29 4 Melee . | . . . . Ram . | . . . . Kick . | . . . . Crush . | . . . . Escape Stasis . | . . . . Rewire . | . . . . Trap . | . . . . Miscellaneous . | . . . . Route ------- -11/Junkyard -10/Materials -9/Materials -9/Mines History --------- Turn | Location | Event 16 | -11/Junkyard | Discovered new exit (range 15) 89 | -11/Junkyard | Entered Materials 185 | -10/Materials | Discovered new exit (range 5) 193 | -10/Materials | Entered another Materials area 193 | -9/Materials | Evolved 2 slots: Utility x2 307 | -9/Materials | Build established: Mutant 544 | -9/Materials | Lost 6 parts (1p2n1u2w) 629 | -9/Materials | Discovered new exit (range 16) 672 | -9/Materials | Entered Mines 673 | -9/Mines | Assembled infested the area 690 | -9/Mines | Core integrity fell below 50% 702 | -9/Mines | Core integrity fell below 20% 702 | -9/Mines | Destroyed by D-53 Grenadier with Mini Grenade Launcher Last Messages --------------- 00674_ S-10 Pest suffers critical hit (Destroy). 00674_ Destroyed Lgt. Assault Rifle. 00676_ Wheel destroyed. 00678_ S-10 Pest destroyed. 00688_ Acquired Lgt. Assault Rifle. 00688_ C-30 ARC bursts open, deploying its payload. 00688_ D-53 Grenadier unfolds itself. 00692_ EM Shotgun destroyed. 00692_ Heat Sink destroyed. 00692_ Lgt. Ion Engine destroyed. 00694_ Shotgun destroyed. 00695_ The unstable cave ceiling collapses. 00697_ as-72623 destroyed. 00698_ The unstable cave ceiling collapses. 00698_ as-89145 destroyed. 00698_ as-52568 destroyed. 00699_ as-33476 destroyed. 00700_ as-68919 destroyed. 00700_ as-24544 destroyed. 00701_ The unstable cave ceiling collapses. Map ----- +----------------------------------------------------+ | | | | | | | | | | | | | | | | | | | | | | | ?????????????????????????????????????????????????? | | ?????????????????????????????????????????????????? | | ?????????????????????????????????????????????????? | | ?????????????????????????????????????????????????? | | ?????????????????????????????????????????????????? | | ?????????????????#???????????????????????????????? | | ?????????????????? ??????????????????????????????? | | ??????????????????? ?????????????????????????????? | | ???????????????????# ????????#######?????????????? | | ???????????????????# #????#### ###????????? | | ???????????????????# ???# ######## | | ???????????????????# #### # | | ????????????????????# | | ????????????????????# % d #??????? | | ????????????????????# @d ##??????? | | ????????????????????### # ##???????? | | ??????????????????????## % ##????????? | | ???????????????????????##### #?????????? | | ???????????????????????????## ###?????????? | | ???????????????????????????? # #???????????? | | ???????????????????????????? ? a #???????????? | | ???????????????????????????? ?# # #???????????? | | ???????????????????????????? ??#### ??????????? | | ???????????????????????????? ??????? ?????????? | | ????????????????????????????#????????## ????????? | | ???????????????????????????????????????? ????????? | | ?????????????????????????????????????????????????? | | ?????????????????????????????????????????????????? | | ?????????????????????????????????????????????????? | | ?????????????????????????????????????????????????? | | ?????????????????????????????????????????????????? | | ?????????????????????????????????????????????????? | | ?????????????????????????????????????????????????? | | ?????????????????????????????????????????????????? | | ?????????????????????????????????????????????????? | | ?????????????????????????????????????????????????? | | ?????????????????????????????????????????????????? | | ?????????????????????????????????????????????????? | | ?????????????????????????????????????????????????? | +----------------------------------------------------+ Best States ------------- Heat Dissipation 38 Energy Generation 12 Energy Capacity 265 Matter Stores 300 Matter Capacity 300 Sight Range 18 Terrain Scan Range 16 Terrain Scan Density 10 Evasion (%) 42 Item Schematics ----------------- None Robot Schematics ------------------ None Fabricated ------------ Nothing Alien Tech Used ----------------- None Achievements -------------- None Challenges ------------ None Game ------ Seed AntigravReactiveDoomcannon Manual? 0 Play Time 00:07:35 Cumulative 26.6 hours Start 2023.11.27 @ 22:38:25 End 2023.11.27 @ 22:45:08 Sessions 1 Manual Loads 0 Difficulty Rogue Special Mode None Game No. 35 Rogue 12 Adventurer 23 Explorer 0 Win Type - Total 1 Types 1/0/0/0/0/0/0/0/0 Lore% 46 Gallery% 41 Achievement% 41 Wizard Run 0 Options --------- ASCII 0 Keyboard 0 Movement Mouse Keybinds 0 Fullscreen 2 Font 18/Terminus Map View 76x50 Tactical HUD 1 Map Filters NONE Filters NONE Steam 1 RUN: 10cf8bda-78bd-4978-a5f4-f56f680e1a93